bitfinex-derivatives/quotes_BTCF0:USTF0_20250320
["timestamp","ask_amount","ask_price","bid_price","bid_amount"]
[1742485292984,0.117635,85041.0,85040.0,0.3513364]
[1742485293187,0.117635,85041.0,85040.0,0.2337]
[1742485293390,0.16999412,85042.0,85040.0,0.3513364]
[1742485293687,0.16999412,85042.0,85041.0,1.617635]
[1742485293887,4.5,85268.0,85041.0,1.617635]
[1742485293888,0.56450957,85052.0,85048.0,0.1176253]
[1742485294088,0.20542958,85052.0,85051.0,0.1176211]
[1742485294299,0.64148,85069.0,85059.0,0.1176089]
[1742485294479,0.6398,85069.0,85060.0,1.7275]
[1742485294681,0.4083,85069.0,85065.0,0.1176006]
[1742485294993,0.4083,85069.0,85068.0,0.1175976]
[1742485295184,0.19529463,85073.0,85068.0,0.1175972]
[1742485295384,0.1175949,85070.0,85069.0,0.2275]
[1742485295887,0.3490949,85070.0,85069.0,0.2275]
[1742485296185,0.1176059,85062.0,85061.0,0.15104]
[1742485296381,0.0588022,85064.0,85060.0,0.00017642]
[1742485296382,0.1176073,85061.0,85060.0,0.00017642]
[1742485297081,0.3536073,85061.0,85060.0,0.00017642]
[1742485297276,0.236,85061.0,85060.0,0.00017642]
[1742485297477,0.3536073,85061.0,85060.0,0.00017642]
[1742485298281,0.7619073,85061.0,85060.0,0.00017642]
[1742485300399,0.5259073,85061.0,85060.0,0.11778512]
[1742485300590,0.3608,85064.0,85063.0,0.1176045]
[1742485300789,0.1176073,85061.0,85060.0,0.05898042]
[1742485301090,0.1176073,85061.0,85060.0,1.50017642]
[1742485301393,0.1176073,85061.0,85060.0,0.00017642]
[1742485302588,0.1176073,85061.0,85060.0,0.36228512]
[1742485302782,0.0588029,85063.0,85060.0,0.36228512]
[1742485302989,0.3608,85064.0,85063.0,0.1176045]
[1742485303294,0.3608,85071.0,85070.0,0.1175949]
[1742485303487,0.3608,85071.0,85070.0,0.2664749]
[1742485303687,0.3608,85081.0,85072.0,0.1175921]
[1742485303890,0.3608,85081.0,85071.0,0.2445]
[1742485304089,0.1175921,85072.0,85071.0,0.2445]
[1742485304293,0.3501921,85072.0,85071.0,0.2445]
[1742485304801,0.1175921,85072.0,85071.0,0.2445]
[1742485304983,0.3608,85081.0,85072.0,0.1175921]
[1742485305183,0.1175921,85072.0,85071.0,0.2445]
[1742485305498,0.1175935,85071.0,85070.0,1.50004]
[1742485305799,0.1176281,85046.0,85045.0,0.2412]
[1742485306093,0.1176433,85035.0,85034.0,0.2229]
[1742485306295,0.1176433,85035.0,85034.0,0.2412]
[1742485306494,0.5259433,85035.0,85034.0,0.2412]
[1742485306694,0.7582433,85035.0,85034.0,0.2412]
[1742485308099,0.7582433,85035.0,85034.0,0.3588447]
[1742485308607,0.7582433,85035.0,85034.0,0.2412]
[1742485308896,0.117653,85028.0,85027.0,4e-05]
[1742485309102,0.886753,85028.0,85027.0,4e-05]
[1742485309607,0.886753,85028.0,85026.0,0.00017642]
[1742485309608,0.1176543,85027.0,85026.0,2e-08]
[1742485309794,0.5690543,85027.0,85026.0,2e-08]
[1742485311301,0.3589543,85027.0,85026.0,2e-08]
[1742485313006,0.1176543,85027.0,85026.0,2e-08]
[1742485313405,0.1176543,85027.0,85026.0,0.11765572]
[1742485313905,0.0588264,85029.0,85028.0,0.117653]
[1742485314806,0.1176477,85032.0,85031.0,0.0588237]
[1742485315202,0.1176468,85033.0,85032.0,0.117646]
[1742485315405,0.1176406,85038.0,85037.0,0.1176391]
[1742485315793,0.1176419,85036.0,85035.0,0.419621]
[1742485315997,0.1176419,85036.0,85035.0,0.3608]
[1742485316198,0.1176433,85035.0,85034.0,0.117644]
[1742485316394,0.1176385,85039.0,85038.0,0.1176377]
[1742485316818,0.13649863,85040.0,85039.0,0.1176377]
[1742485317007,0.25413503,85040.0,85039.0,0.1176377]
[1742485318000,0.1176433,85035.0,85034.0,0.3608]
[1742485318308,0.1176433,85035.0,85034.0,0.50676]
[1742485318711,0.1176433,85035.0,85034.0,0.3608]
[1742485319810,0.1176433,85035.0,85030.0,0.14592]
[1742485320009,0.1176543,85027.0,85024.0,0.3565584]
[1742485320212,0.3608,85040.0,85035.0,0.1176425]
[1742485320405,0.1176479,85032.0,85031.0,0.1176488]
[1742485321505,0.1764688,85034.0,85033.0,0.117646]
[1742485321914,0.058823,85034.0,85033.0,0.262886]
[1742485322215,0.1176387,85039.0,85038.0,0.1176377]
[1742485322512,0.00017642,85043.0,85041.0,0.117635]
[1742485322814,0.00017642,85043.0,85041.0,0.623515]
[1742485323411,0.1176188,85053.0,85052.0,0.1176171]
[1742485324618,0.2317,85054.0,85049.0,0.3608]
[1742485324801,0.1176147,85056.0,85055.0,0.1176121]
[1742485325008,0.00017642,85061.0,85060.0,0.1176087]
[1742485325515,0.1176101,85059.0,85058.0,0.2620514]
[1742485325813,0.1176101,85059.0,85058.0,0.14444]
[1742485326127,0.5769101,85059.0,85058.0,0.14444]
[1742485327519,0.00017642,85061.0,85058.0,0.2032451]
[1742485327816,0.11778652,85061.0,85060.0,0.1176087]
[1742485328008,0.00017642,85061.0,85060.0,0.1176087]
[1742485329316,0.00017642,85061.0,85058.0,0.2620507]
[1742485329512,0.1176101,85059.0,85058.0,0.14444]
[1742485329821,0.1176101,85059.0,85058.0,0.2620515]
[1742485330115,0.1176101,85059.0,85058.0,0.14444]
[1742485330318,0.2914043,85060.0,85057.0,0.00876052]
[1742485330520,0.1176115,85058.0,85057.0,0.00876052]
[1742485330821,0.1176115,85058.0,85057.0,0.00872052]
[1742485331019,0.6507185,85058.0,85056.0,0.4196471]
[1742485331221,0.2914057,85058.0,85057.0,0.1176128]
[1742485331412,0.00017642,85061.0,85060.0,0.1176087]
[1742485331723,0.00017642,85061.0,85060.0,0.2610887]
[1742485333610,0.1176128,85057.0,85056.0,0.36084]
[1742485333819,0.1176239,85049.0,85048.0,4e-05]
[1742485334123,0.4784239,85049.0,85048.0,4e-05]
[1742485334318,0.9417239,85049.0,85048.0,4e-05]
[1742485334818,0.0588126,85048.0,85047.0,0.1176253]
[1742485335019,0.5372162,85060.0,85059.0,0.1176101]
[1742485335222,0.1764312,85053.0,85052.0,0.1176156]
[1742485336124,0.0588095,85053.0,85052.0,0.1176156]
[1742485336329,0.2950053,85059.0,85058.0,0.1176115]
[1742485336522,0.1176101,85059.0,85058.0,0.1176115]
[1742485336913,0.1176101,85059.0,85058.0,0.5690115]
[1742485336914,0.1764151,85059.0,85058.0,0.5690115]
[1742485337115,0.058805,85059.0,85058.0,0.5690115]
[1742485337320,0.11778482,85061.0,85060.0,0.1176087]
[1742485337519,0.11778372,85061.0,85060.0,0.1176087]
[1742485337734,0.11778372,85061.0,85060.0,0.9298087]
[1742485337923,0.11778372,85061.0,85060.0,0.94440704]
[1742485338424,0.00017642,85061.0,85060.0,0.5690087]
[1742485339318,0.1763704,85084.0,85083.0,0.1175723]
[1742485339518,0.0587892,85084.0,85083.0,0.12618356]
[1742485339718,0.2195,85088.0,85087.0,0.1175714]
[1742485340036,0.5258631,85093.0,85092.0,0.1175645]
[1742485340222,0.4439,85101.0,85094.0,0.1175617]
[1742485340533,0.35592559,85096.0,85095.0,0.2224]
[1742485340732,0.35592559,85096.0,85095.0,0.5796603]
[1742485341820,0.1175589,85096.0,85095.0,0.4621]
[1742485342028,0.1175589,85096.0,85095.0,0.36476]
[1742485342830,0.1175589,85096.0,85095.0,0.4823203]
[1742485343033,0.4195787,85098.0,85097.0,0.1175576]
[1742485343529,0.561452,85101.0,85100.0,0.1175534]
[1742485343727,0.2195,85101.0,85100.0,0.1175534]
[1742485344229,0.337052,85101.0,85100.0,0.1175534]
[1742485344722,0.2195,85101.0,85100.0,0.1175534]
[1742485344927,0.2195,85101.0,85100.0,0.2592334]
[1742485345136,0.20523633,85104.0,85103.0,0.1175493]
[1742485345525,0.32278423,85104.0,85103.0,0.1175493]
[1742485345836,0.1175507,85102.0,85101.0,0.9403513]
[1742485346436,0.3576507,85102.0,85101.0,0.9403513]
[1742485347222,0.20523633,85104.0,85103.0,0.1175493]
[1742485347726,0.1175507,85102.0,85101.0,0.940352]
[1742485347921,0.1175507,85102.0,85095.0,0.0587796]
[1742485347922,0.1175507,85102.0,85086.0,0.0001763]
[1742485348231,0.1175603,85095.0,85094.0,4e-05]
[1742485349627,0.1175603,85095.0,85086.0,0.0001763]
[1742485349628,0.1175714,85087.0,85086.0,0.0001763]
[1742485350539,0.5659714,85087.0,85086.0,0.1177491]
[1742485351123,0.5659714,85087.0,85086.0,0.0001763]
[1742485351435,0.5659714,85087.0,85075.0,0.0587939]
[1742485351436,0.117588,85076.0,85075.0,0.0587939]
[1742485351743,0.1175893,85074.0,85073.0,0.9712703]
[1742485352035,0.4467,85075.0,85074.0,4e-05]
[1742485352226,0.1764123,85062.0,85059.0,0.058844]
[1742485352428,0.1176087,85060.0,85059.0,0.058844]
[1742485354741,0.2231,85068.0,85067.0,0.117599]
[1742485354944,0.3406976,85068.0,85067.0,0.117599]
[1742485355440,0.2231,85068.0,85067.0,0.117599]
[1742485356136,0.00017601,85069.0,85068.0,0.1175976]
[1742485356324,0.00017601,85069.0,85068.0,0.5676976]
[1742485357138,0.11777231,85069.0,85068.0,0.4501]
[1742485357334,0.11777231,85069.0,85068.0,0.2289]
[1742485357526,0.11777231,85069.0,85062.0,0.3608]
[1742485357527,0.0587991,85068.0,85062.0,0.3608]
[1742485357728,0.0587991,85068.0,85060.0,0.2282]
[1742485357729,0.1176073,85061.0,85060.0,0.21774]
[1742485357928,0.07644052,85061.0,85060.0,0.21774]
[1742485358128,0.221,85062.0,85061.0,0.1176073]
[1742485358328,0.1175993,85067.0,85066.0,0.1175977]
[1742485358529,0.1175993,85067.0,85066.0,0.6181577]
[1742485358726,0.00017601,85069.0,85068.0,0.1175976]
[1742485359345,0.00017601,85069.0,85068.0,0.5586976]
[1742485360031,0.1175931,85072.0,85071.0,0.1175935]
[1742485360230,0.117587,85076.0,85069.0,0.0587979]
[1742485360445,0.0587956,85073.0,85068.0,0.2177]
[1742485360760,0.218,85072.0,85071.0,0.1175935]
[1742485360933,0.218,85072.0,85071.0,0.5643935]
[1742485361131,0.1175749,85085.0,85071.0,0.5055964]
[1742485361339,0.4434,85086.0,85071.0,0.4468]
[1742485361639,0.1175828,85079.0,85077.0,0.2351687]
[1742485361852,0.1175814,85080.0,85078.0,0.3383829]
[1742485362042,0.1175814,85080.0,85078.0,0.5643829]
[1742485362236,0.0587892,85082.0,85078.0,0.4468]
[1742485362438,0.13673118,85091.0,85086.0,0.1175728]
[1742485362755,0.00172001,85112.0,85090.0,0.1175672]
[1742485362950,0.00373648,85114.0,85113.0,0.1175355]
[1742485363133,0.00373648,85114.0,85113.0,0.4783355]
[1742485363330,0.1175324,85117.0,85113.0,0.3608]
[1742485363542,0.00383884,85138.0,85125.0,0.1175189]
[1742485363843,0.0587511,85137.0,85129.0,0.1175125]
[1742485364053,0.1762534,85137.0,85136.0,0.3608]
[1742485365040,0.3262534,85137.0,85136.0,0.3608]
[1742485365240,0.5408534,85137.0,85136.0,0.3608]
[1742485365444,0.3908534,85137.0,85136.0,0.3608]
[1742485365647,0.1762534,85137.0,85136.0,0.3608]
[1742485366938,0.1762534,85137.0,85136.0,0.4783037]
[1742485367545,0.0587511,85137.0,85136.0,0.4783037]
[1742485367977,0.12133974,85138.0,85137.0,0.1175023]
[1742485368252,0.1175009,85138.0,85137.0,0.4566046]
[1742485368439,0.1175009,85138.0,85137.0,0.2216]
[1742485368749,0.00104008,85141.0,85136.0,0.36956145]
[1742485368949,0.1174968,85141.0,85140.0,0.3608]
[1742485369250,0.117487,85149.0,85143.0,0.0587467]
[1742485369447,0.1174858,85149.0,85148.0,0.3608]
[1742485370054,0.1174954,85142.0,85141.0,0.3608]
[1742485372742,0.2674954,85142.0,85141.0,0.3608]
[1742485372941,0.1175106,85131.0,85130.0,0.3608]
[1742485373143,0.1175189,85125.0,85120.0,0.2211]
[1742485373348,0.01068981,85134.0,85124.0,0.00884472]
[1742485373549,0.1175065,85134.0,85133.0,0.3608]
[1742485373755,0.1175065,85134.0,85133.0,0.6177079]
[1742485373952,0.1175065,85134.0,85133.0,0.5002]
[1742485374254,0.1175065,85134.0,85133.0,0.3608]
[1742485374856,0.1175065,85134.0,85133.0,0.4783079]
[1742485375153,0.1175065,85134.0,85133.0,0.3608]
[1742485375356,0.3526065,85134.0,85133.0,0.3608]
[1742485376252,0.1175065,85134.0,85133.0,0.3608]
[1742485376455,0.058752,85136.0,85135.0,0.1175051]
[1742485376754,0.1175051,85136.0,85135.0,0.1175023]
[1742485377051,0.1175065,85134.0,85133.0,0.8184]
[1742485378252,0.1175065,85134.0,85133.0,0.5952]
[1742485379352,0.1175189,85125.0,85124.0,0.3609763]
[1742485379554,0.6169189,85125.0,85124.0,0.0001763]
[1742485379750,0.0587653,85117.0,85105.0,0.3608]
[1742485380059,0.1763115,85109.0,85108.0,0.00897803]
[1742485380562,0.5080705,85109.0,85108.0,0.00897803]
[1742485380761,0.2812705,85109.0,85108.0,0.00897803]
[1742485380959,0.1175424,85108.0,85107.0,8e-05]
[1742485381153,0.1175424,85108.0,85107.0,0.3382237]
[1742485381355,0.1175404,85110.0,85107.0,0.22962013]
[1742485381550,0.1175424,85108.0,85107.0,0.00902013]
[1742485381750,0.1175424,85108.0,85107.0,0.00894013]
[1742485382056,0.1175424,85108.0,85105.0,0.2794726]
[1742485382057,0.1175437,85107.0,85106.0,0.1175445]
[1742485382254,0.1175451,85106.0,85105.0,0.22074]
[1742485382445,0.3373451,85106.0,85105.0,0.22074]
[1742485382852,0.3373451,85106.0,85105.0,0.3382865]
[1742485383367,0.3373451,85106.0,85105.0,0.36084]
[1742485383658,0.3373451,85106.0,85103.0,0.00879556]
[1742485383862,0.117552,85101.0,85100.0,0.00017619]
[1742485384063,0.2198,85106.0,85105.0,0.1175465]
[1742485384265,0.3608,85119.0,85104.0,0.3608]
[1742485384561,0.11770923,85117.0,85116.0,0.1175313]
[1742485384864,0.00017593,85117.0,85116.0,0.1175313]
[1742485385158,0.2225,85132.0,85130.0,0.1175106]
[1742485385363,0.1175092,85132.0,85131.0,0.1384]
[1742485385566,0.1175148,85128.0,85127.0,0.3608]
[1742485385760,0.1175148,85128.0,85127.0,0.4992]
[1742485386061,0.00112001,85153.0,85127.0,0.4992]
[1742485386250,0.28843057,85138.0,85137.0,0.1175023]
[1742485387060,0.17092827,85138.0,85135.0,0.5579518]
[1742485387261,0.1175037,85136.0,85135.0,0.4992]
[1742485387749,0.1175037,85136.0,85135.0,0.3608]
[1742485387956,0.3394037,85136.0,85135.0,0.3608]
[1742485388162,0.1175148,85128.0,85127.0,0.3608]
[1742485388356,0.1175189,85125.0,85124.0,0.1175189]
[1742485388551,0.0587552,85132.0,85123.0,0.3608]
[1742485388763,0.1175148,85128.0,85127.0,0.0587574]
[1742485388961,0.2219,85136.0,85123.0,0.4784017]
[1742485388962,0.1175203,85124.0,85123.0,0.4784017]
[1742485389261,0.1174983,85143.0,85142.0,0.117493]
[1742485389453,0.21714693,85154.0,85133.0,0.3608]
[1742485389654,0.21714693,85154.0,85142.0,0.0587469]
[1742485389655,0.0587452,85147.0,85142.0,0.0587469]
[1742485389848,0.1174919,85145.0,85144.0,0.1762355]
[1742485390061,0.0587449,85147.0,85146.0,0.1174899]
[1742485390564,0.0587435,85148.0,85146.0,0.1174885]
[1742485390757,0.17092827,85149.0,85148.0,0.1174871]
[1742485390953,0.1174968,85141.0,85140.0,0.3608]
[1742485392065,0.1175051,85135.0,85134.0,0.00017619]
[1742485392361,0.1175368,85112.0,85111.0,0.01068492]
[1742485392579,0.1175368,85112.0,85111.0,0.12822312]
[1742485392763,0.1175368,85112.0,85111.0,0.01068492]
[1742485392966,0.1175396,85110.0,85109.0,0.1175807]
[1742485393163,0.217,85123.0,85109.0,0.1175807]
[1742485393164,0.1175341,85116.0,85115.0,0.1175293]
[1742485393424,0.1763007,85116.0,85115.0,0.4783293]
[1742485393871,0.11769649,85124.0,85123.0,0.1175217]
[1742485394165,0.1175258,85121.0,85120.0,0.1175253]
[1742485394369,0.1175258,85121.0,85120.0,0.3404253]
[1742485395074,0.00017619,85124.0,85123.0,0.1175217]
[1742485395255,0.11769649,85124.0,85123.0,0.4783217]
[1742485395452,0.00017619,85124.0,85123.0,0.4783217]
[1742485395967,0.11769649,85124.0,85123.0,0.4783217]
[1742485396267,0.11769649,85124.0,85123.0,0.3608]
[1742485396473,0.11769649,85124.0,85123.0,0.4783217]
[1742485396668,0.11769649,85124.0,85123.0,0.8063]
[1742485396860,0.11769649,85124.0,85123.0,0.9238217]
[1742485397366,0.1175217,85123.0,85122.0,4e-05]
[1742485397551,0.1175217,85123.0,85108.0,0.2303]
[1742485397552,0.1175327,85115.0,85108.0,0.2303]
[1742485397753,0.1175396,85110.0,85109.0,0.00879756]
[1742485397965,0.1175396,85110.0,85109.0,0.2152]
[1742485398363,0.1175396,85110.0,85109.0,0.22418442]
[1742485399357,0.1175396,85110.0,85108.0,0.2303]
[1742485399358,0.117541,85109.0,85108.0,0.2303]
[1742485399770,0.553441,85109.0,85108.0,0.2303]
[1742485400393,0.1175424,85108.0,85107.0,0.00021619]
[1742485400665,0.5534424,85108.0,85107.0,0.00021619]
[1742485401369,0.1175631,85093.0,85092.0,0.0006]
[1742485401564,0.1175659,85091.0,85090.0,0.3402672]
[1742485402067,0.117559,85100.0,85099.0,0.1175534]
[1742485402262,0.176337,85100.0,85099.0,0.1175534]
[1742485402783,0.058778,85100.0,85099.0,0.5619534]
[1742485404202,0.1175513,85102.0,85101.0,0.0587753]
[1742485404384,0.1175513,85102.0,85101.0,0.5031753]
[1742485405170,0.1175513,85102.0,85101.0,0.6415753]
[1742485406580,0.28847477,85105.0,85104.0,0.1175479]
[1742485407173,0.28847477,85105.0,85101.0,0.5828]
[1742485407371,0.1175548,85099.0,85098.0,0.7216]
[1742485407572,0.1175548,85099.0,85098.0,0.9775562]
[1742485407766,0.1175548,85099.0,85098.0,0.9776362]
[1742485410369,0.1175548,85099.0,85098.0,0.72168]
[1742485410574,0.1175548,85099.0,85098.0,0.36088]
[1742485410777,0.5467548,85099.0,85098.0,0.3608]
[1742485411474,0.3285548,85099.0,85098.0,0.3608]
[1742485411674,0.0587753,85102.0,85101.0,0.1175479]
[1742485411876,0.1763315,85100.0,85099.0,0.1175536]
[1742485412174,0.1763315,85100.0,85099.0,0.2351066]
[1742485412782,0.1763315,85100.0,85099.0,0.117553]
[1742485413168,0.1175548,85099.0,85098.0,0.4783561]
[1742485413678,0.1175548,85103.0,85102.0,0.1175465]
[1742485413977,0.3433548,85103.0,85102.0,0.1175465]
[1742485414978,0.117552,85101.0,85100.0,0.1175534]
[1742485415974,0.1175534,85100.0,85099.0,0.1384]
[1742485416275,0.3372534,85100.0,85099.0,0.1384]
[1742485416477,0.1175548,85099.0,85098.0,0.3608]
[1742485416874,0.5642548,85099.0,85098.0,0.3608]
[1742485417468,0.1175645,85092.0,85091.0,0.36097619]
[1742485417966,0.5609645,85092.0,85091.0,0.36097619]
[1742485418767,0.1175629,85094.0,85091.0,0.36097619]
[1742485418963,0.1175528,85101.0,85094.0,0.0587808]
[1742485419165,0.117559,85098.0,85097.0,0.1175534]
[1742485419984,0.1763372,85098.0,85097.0,0.1175534]
[1742485420284,0.1763372,85098.0,85097.0,0.13143424]
[1742485421178,0.1763372,85098.0,85093.0,0.3608]
[1742485421179,0.1175617,85094.0,85093.0,0.3608]
[1742485421386,0.1175617,85094.0,85093.0,0.4783631]
[1742485422583,0.1175617,85094.0,85093.0,0.3608]
[1742485422884,0.1175617,85094.0,85093.0,0.4917499]
[1742485423182,0.1175617,85094.0,85093.0,0.3741868]
[1742485423574,0.3424617,85094.0,85093.0,0.4917499]
[1742485423978,0.3424617,85094.0,85093.0,0.3741868]
[1742485424182,0.3424617,85094.0,85092.0,4e-05]
[1742485424183,0.1175631,85093.0,85092.0,4e-05]
[1742485424388,0.3357631,85093.0,85092.0,4e-05]
[1742485424686,0.1175645,85092.0,85091.0,0.00017619]
[1742485425184,0.5504645,85092.0,85091.0,0.00021619]
[1742485426986,0.3322645,85092.0,85091.0,0.00021619]
[1742485427290,0.3322645,85092.0,85091.0,0.45708393]
[1742485427671,0.61532433,85092.0,85091.0,0.01488393]
[1742485427867,0.61532433,85092.0,85091.0,0.24438393]
[1742485428076,0.61532433,85092.0,85091.0,0.01488393]
[1742485428784,0.61532433,85092.0,85091.0,0.01484393]
[1742485429774,0.61532433,85092.0,85091.0,0.24204393]
[1742485430185,0.7870202,85092.0,85091.0,0.24204393]
[1742485430385,0.7870202,85092.0,85091.0,0.01484393]
[1742485430579,0.7870202,85092.0,85091.0,0.00017619]
[1742485432974,1.0777557,85092.0,85070.0,4e-05]
[1742485433271,0.1175935,85071.0,85070.0,4e-05]
[1742485433689,0.5598935,85071.0,85070.0,4e-05]
[1742485434484,0.57365724,85071.0,85070.0,4e-05]
[1742485434790,0.1175976,85068.0,85067.0,4e-05]
[1742485435285,0.1176018,85065.0,85064.0,0.2192]
[1742485435482,0.1176045,85063.0,85062.0,0.00017629]
[1742485435682,0.117617,85054.0,85053.0,0.20998011]
[1742485435880,0.117617,85054.0,85053.0,0.21889645]
[1742485436186,0.478417,85054.0,85053.0,0.21889645]
[1742485436573,0.478417,85054.0,85053.0,0.20998011]
[1742485436574,0.117617,85054.0,85053.0,0.20998011]
[1742485436777,0.1176198,85052.0,85051.0,0.2319]
[1742485437278,0.1176198,85052.0,85051.0,0.23194]
[1742485437680,0.13155308,85052.0,85051.0,0.23194]
[1742485438183,0.13155308,85052.0,85051.0,4e-05]
[1742485438574,0.13155308,85052.0,85045.0,0.00017629]
[1742485438575,0.0588126,85049.0,85045.0,0.00017629]
[1742485438782,0.1176405,85037.0,85036.0,0.24567702]
[1742485438975,0.1176405,85037.0,85036.0,0.24078433]
[1742485439782,0.1176405,85037.0,85031.0,0.2159]
[1742485439783,0.1176488,85031.0,85026.0,0.1176545]
[1742485439981,0.1176488,85031.0,85028.0,0.00017629]
[1742485440387,0.1176488,85031.0,85030.0,0.37549721]
[1742485440588,0.1176488,85031.0,85030.0,0.50205292]
[1742485441088,0.1176488,85031.0,85030.0,0.36970551]
[1742485441583,0.1176488,85031.0,85030.0,0.59160551]
[1742485442494,0.0588226,85034.0,85033.0,0.117646]
[1742485442994,0.0588226,85034.0,85033.0,0.571346]
[1742485443885,0.00112001,85063.0,85033.0,0.4537]
[1742485444192,0.0588066,85057.0,85038.0,0.3608]
[1742485444421,0.1176377,85039.0,85038.0,0.3608]
[1742485444696,0.1176377,85039.0,85038.0,0.51397147]
[1742485445486,0.1176377,85039.0,85038.0,0.4992]
[1742485445690,0.1176315,85044.0,85041.0,0.0588168]
[1742485445886,0.0588175,85042.0,85039.0,0.218]
[1742485446092,0.1176364,85040.0,85039.0,0.4532714]
[1742485446392,0.1176377,85039.0,85038.0,0.4784391]
[1742485446794,0.1766218,85047.0,85046.0,0.1176281]
[1742485447092,0.1766218,85047.0,85046.0,0.4784281]
[1742485447093,0.0001764,85047.0,85046.0,0.4784281]
[1742485447589,0.1178031,85047.0,85046.0,0.4784281]
[1742485447903,0.1178031,85047.0,85046.0,0.4931114]
[1742485448796,0.1178031,85047.0,85046.0,0.4784281]
[1742485448986,0.1178031,85047.0,85046.0,0.3608]
[1742485450587,0.0001764,85047.0,85046.0,0.4784281]
[1742485450784,0.1178031,85047.0,85046.0,0.7046281]
[1742485452191,0.1176056,85065.0,85064.0,0.1175986]
[1742485452394,0.176407,85065.0,85064.0,0.3608]
[1742485452589,0.13661002,85071.0,85064.0,0.3608]
[1742485452795,0.13661002,85071.0,85070.0,0.1175949]
[1742485453088,0.25420632,85069.0,85068.0,0.1175976]
[1742485453486,0.1176004,85066.0,85065.0,0.13836]
[1742485453999,0.1176045,85063.0,85062.0,0.0001764]
[1742485454300,0.1176045,85063.0,85062.0,0.1312831]
[1742485454693,0.0588016,85065.0,85064.0,0.1176032]
[1742485455001,0.13661002,85069.0,85068.0,0.1175976]
[1742485455196,0.17133067,85075.0,85074.0,0.1175893]
[1742485455197,0.28891867,85075.0,85074.0,0.1175893]
[1742485455390,0.28891867,85075.0,85074.0,0.2559493]
[1742485455592,0.0587911,85080.0,85078.0,0.1175838]
[1742485455795,0.1177588,85079.0,85078.0,0.4873956]
[1742485456300,0.1177588,85079.0,85078.0,0.50201482]
[1742485456799,0.0001764,85079.0,85078.0,0.50201482]
[1742485458597,0.1175645,85093.0,85092.0,0.1175599]
[1742485458801,0.1175583,85098.0,85097.0,0.1175553]
[1742485458999,0.1175589,85096.0,85095.0,0.176339]
[1742485459303,0.0587781,85098.0,85094.0,0.05878]
[1742485459490,0.1763439,85095.0,85092.0,0.6481821]
[1742485459689,0.1763439,85095.0,85094.0,0.1175617]
[1742485459999,0.1175631,85093.0,85092.0,0.5894]
[1742485460298,0.1175631,85093.0,85092.0,0.72772]
[1742485460690,0.1175631,85093.0,85092.0,0.8452845]
[1742485461697,0.1175577,85097.0,85096.0,0.1175576]
[1742485461900,0.0587649,85117.0,85100.0,0.0587755]
[1742485462094,0.1763255,85104.0,85103.0,0.1175479]
[1742485462402,0.117552,85102.0,85101.0,0.1175511]
[1742485462803,0.117552,85101.0,85100.0,0.1970555]
[1742485463500,0.117552,85101.0,85100.0,0.21049786]
[1742485463696,0.117552,85101.0,85100.0,0.13828]
[1742485463898,0.1175534,85100.0,85099.0,0.3608]
[1742485464195,0.3491534,85100.0,85099.0,0.3608]
[1742485464593,0.3491534,85100.0,85063.0,0.0588021]
[1742485464594,0.1175645,85092.0,85090.0,0.3608]
[1742485464784,0.1175659,85091.0,85090.0,0.3608]
[1742485464992,0.3491659,85091.0,85090.0,0.3608]
[1742485465200,0.01378894,85101.0,85090.0,0.3608]
[1742485465201,0.0001763,85105.0,85102.0,0.0587746]
[1742485465389,0.0001763,85105.0,85104.0,0.4783479]
[1742485465698,0.0001763,85105.0,85104.0,0.8391479]
[1742485465891,0.1177228,85105.0,85104.0,0.8391479]
[1742485466600,0.0001763,85105.0,85104.0,0.8391479]
[1742485466796,0.2307,85118.0,85114.0,0.0587664]
[1742485467006,0.0587697,85111.0,85108.0,0.058771]
[1742485467196,0.0587697,85111.0,85109.0,0.13824]
[1742485467197,0.17631,85110.0,85109.0,0.13824]
[1742485467497,0.4544,85110.0,85100.0,0.3608]
[1742485467696,0.1175465,85105.0,85104.0,0.13824]
[1742485467899,0.1175493,85103.0,85102.0,0.1175503]
[1742485468202,0.1175507,85102.0,85101.0,0.1175507]
[1742485468393,0.3498507,85102.0,85101.0,0.1175507]
[1742485469393,0.117552,85101.0,85100.0,0.3608]
[1742485469589,0.341852,85101.0,85100.0,0.3608]
[1742485469795,0.1175548,85099.0,85098.0,4e-05]
[1742485470394,0.5816548,85099.0,85098.0,4e-05]
[1742485470794,0.1175576,85097.0,85096.0,0.0001763]
[1742485471206,0.5816576,85097.0,85096.0,0.0001763]
[1742485471589,0.5816576,85097.0,85096.0,0.1177352]
[1742485472092,0.5816576,85097.0,85096.0,0.13105677]
[1742485472290,0.3418576,85097.0,85096.0,0.14591948]
[1742485472493,0.1175576,85097.0,85096.0,0.28415948]
[1742485472702,0.2781739,85104.0,85103.0,0.1175493]
[1742485472912,0.2781739,85104.0,85103.0,0.4783493]
[1742485472913,0.0587739,85104.0,85103.0,0.4783493]
[1742485473210,0.00112001,85125.0,85113.0,0.1175355]
[1742485473402,0.1762726,85128.0,85127.0,0.1175161]
[1742485473605,0.1175126,85130.0,85129.0,0.117512]
[1742485473909,0.1762756,85128.0,85127.0,0.1175151]
[1742485474514,0.1762756,85128.0,85127.0,0.3404151]
[1742485474802,0.1762756,85128.0,85127.0,0.2229]
[1742485475009,0.3956756,85128.0,85127.0,0.2229]
[1742485475597,0.1175189,85125.0,85124.0,0.3608]
[1742485476002,0.1175189,85125.0,85124.0,0.37543847]
[1742485476509,0.2232,85127.0,85124.0,0.38426041]
[1742485476692,0.3369153,85128.0,85127.0,0.1175161]
[1742485477303,0.3369153,85128.0,85127.0,0.13215457]
[1742485477699,0.3369153,85128.0,85127.0,0.01463847]
[1742485477899,0.3369153,85128.0,85127.0,0.13215457]
[1742485478304,0.1175153,85128.0,85127.0,0.61415457]
[1742485478511,0.1762653,85135.0,85134.0,0.1175019]
[1742485479005,0.01333754,85144.0,85133.0,0.3608]
[1742485479006,0.0587429,85149.0,85133.0,0.8338]
[1742485479313,0.1174866,85149.0,85148.0,0.1174858]
[1742485479501,0.4670425,85150.0,85133.0,0.8338]
[1742485479502,0.1174913,85146.0,85145.0,0.1174913]
[1742485479698,0.00114102,85156.0,85144.0,0.37378658]
[1742485480007,0.01362793,85155.0,85145.0,0.13816]
[1742485480204,0.0587408,85153.0,85152.0,0.1174789]
[1742485480404,0.1174899,85146.0,85145.0,0.13816]
[1742485480802,0.1174982,85140.0,85136.0,0.13816]
[1742485481107,0.1174982,85140.0,85133.0,0.3608]
[1742485481708,0.1174982,85140.0,85138.0,4e-05]
[1742485482512,0.1224982,85140.0,85138.0,4e-05]
[1742485482719,0.3525982,85140.0,85138.0,4e-05]
[1742485483411,0.3525982,85140.0,85126.0,0.1382]
[1742485483412,0.1175161,85127.0,85126.0,4e-05]
[1742485483713,0.1175189,85125.0,85124.0,0.00882194]